[Event "4NCL 2023-2024"]
[Site "Daventry"]
[Date "2024.05.06"]
[Round "11.30"]
[White "Chan, Sheng Liang Bernard"]
[Black "Maciol, Ryszard"]
[Result "0-1"]
[ECO "E24"]
[WhiteElo "2096"]
[BlackElo "2127"]
[Annotator "NA RC"]
[PlyCount "122"]
[EventDate "2023.11.11"]
[EventType "team-tourn"]
[EventCountry "ENG"]
[SourceTitle "playchess.com"]
[Source "ChessBase"]
[SourceQuality "1"]
[TimeControl "40/6000+30:3000+30"]

1. d4 {[%emt 0:00:04]} Nf6 {[%emt 0:00:05]} 2. c4 {[%emt 0:00:13]} e6 {[%emt 0:00:28]} 3. Nc3 {[%emt 0:00:14]} Bb4 {[%emt 0:01:23]} 4. a3 {[%emt 0:00:10]} Bxc3+ {[%emt 0:00:10]} 5. bxc3 {[%emt 0:00:08]} c5 {[%emt 0:00:26]} 6. f3 {[%emt 0:00:10]} Nc6 {[%emt 0:02:28]} 7. e3 {[%emt 0:03:07] E24: Nimzo-Indian: Sämisch: Unusual Black 5th moves and 5...c5 sidelines.} b6 {[%emt 0:03:58]} 8. Bd3 {[%emt 0:07:07]} Ba6 {[%emt 0:01:42]} 9. Qe2 {[%emt 0:11:03]} Qc7 {[%emt 0:03:02]} 10. Bb2 {[%emt 0:07:44]} Na5 {[%emt 0:15:49]} 11. d5 {[%emt 0:06:01]} exd5 {[%emt 0:05:49]} 12. cxd5 {[%emt 0:00:17]} Bxd3 {[%emt 0:01:20]} 13. Qxd3 {[%emt 0:00:06]} c4 {[%emt 0:00:06]} 14. Qf5 {[%emt 0:01:58]} O-O {[%emt 0:07:52]} 15. Rd1 {[%emt 0:04:43]} Rfe8 {[%emt 0:04:41]} 16. e4 {[%emt 0:04:45]} Re5 {[%emt 0:03:27]} 17. Qh3 {[%emt 0:00:07]} Rae8 {[%emt 0:15:25]} 18. Kf1 {[%emt 0:06:35]} Nb3 {[%emt 0:05:18]} 19. Ne2 $19 {[%emt 0:03:39]} Nxe4 {[%emt 0:13:29]} 20. fxe4 {[%emt 0:00:22]} Rxe4 {[%emt 0:00:24]} 21. Qg3 {[%emt 0:00:05]} Qd8 {[%emt 0:04:52]} 22. Ng1 {[%emt 0:02:00]} h5 {[%emt 0:09:22]} 23. Bc1 {[%emt 0:11:54]} Qf6+ {[%emt 0:01:09]} 24. Qf2 {[%emt 0:09:24]} Qg6 {[%emt 0:02:41]} 25. h4 {[%emt 0:03:19]} Nc5 {[%emt 0:01:58]} 26. Nf3 {[%emt 0:06:48]} Re2 {[%emt 0:01:09]} 27. Qxe2 {[%emt 0:00:18]} Rxe2 {[%emt 0:00:05]} 28. Kxe2 {[%emt 0:00:03]} Qxg2+ {[%emt 0:01:27]} 29. Ke3 {[%emt 0:00:01]} Qc2 {[%emt 0:00:38]} 30. Rhf1 {[%emt 0:16:42]} Qe4+ {[%emt 0:01:31]} 31. Kf2 {[%emt 0:00:55]} Nd3+ {[%emt 0:00:15]} 32. Kg1 {[%emt 0:01:00]} Qxd5 {[%emt 0:00:48]} 33. Be3 {[%emt 0:00:30]} f6 {[%emt 0:00:21]} 34. Nd4 {[%emt 0:00:55]} Qe4 {[%emt 0:00:39]} 35. Rf3 {[%emt 0:02:50]} Qg4+ {[%emt 0:01:04]} 36. Kf1 {[%emt 0:00:18]} Ne5 {[%emt 0:00:22]} 37. Ke2 {[%emt 0:00:35]} Nxf3 {[%emt 0:01:57]} 38. Nxf3 {[%emt 0:00:01]} Qg2+ {[%emt 0:00:50]} 39. Bf2 {[%emt 0:00:05]} Qh3 {[%emt 0:00:30]} 40. Rg1 {[%emt 0:01:35]} Kf7 {[%emt 0:00:37]} 41. Rd1 {[%emt 0:03:35]} Qf5 {[%emt 0:03:10]} 42. Be1 {[%emt 0:07:05]} d5 {[%emt 0:06:45]} 43. Rd4 {[%emt 0:02:32]} Ke7 {[%emt 0:03:25]} 44. Bd2 {[%emt 0:00:24]} Kd6 {[%emt 0:03:38]} 45. Bf4+ {[%emt 0:00:06]} Kd7 {[%emt 0:01:45]} 46. Bd2 {[%emt 0:01:02]} Kc7 {[%emt 0:01:47]} 47. Ne1 {[%emt 0:01:16]} Kb7 {[%emt 0:02:15]} 48. Ng2 {[%emt 0:00:17]} g5 {[%emt 0:03:04]} 49. Ne3 {[%emt 0:00:29]} Qe5 {[%emt 0:01:11]} 50. Kd1 {[%emt 0:01:12]} Qh2 {[%emt 0:03:47]} 51. Nxd5 {[%emt 0:01:19]} gxh4 {[%emt 0:00:47]} 52. Bf4 {[%emt 0:00:28]} Qg1+ {[%emt 0:02:25]} 53. Kc2 {[%emt 0:01:10]} h3 {[%emt 0:06:11]} 54. Rd2 {[%emt 0:00:06]} Qc5 {[%emt 0:03:20]} 55. Bh2 {[%emt 0:07:33]} Qxa3 {[%emt 0:01:31]} 56. Kd1 {[%emt 0:04:14]} Qa1+ {[%emt 0:04:15]} 57. Kc2 {[%emt 0:01:22]} a5 {[%emt 0:01:13]} 58. Bf4 {[%emt 0:02:29]} Qa2+ {[%emt 0:02:53]} 59. Kc1 {[%emt 0:00:35]} Qa3+ {[%emt 0:00:41]} 60. Kb1 {[%emt 0:03:00]} Qc5 {[%emt 0:01:37]} 61. Be3 {[%emt 0:00:40]} h2 {[%emt 0:00:19]} 0-1

[Event "4NCL 2023-2024"]
[Site "Daventry"]
[Date "2024.05.06"]
[Round "11.31"]
[White "Franco, Gaston"]
[Black "Walton, Alan J"]
[Result "1-0"]
[ECO "D35"]
[WhiteElo "2061"]
[BlackElo "2035"]
[Annotator "NA RC"]
[PlyCount "69"]
[EventDate "2023.11.11"]
[EventType "team-tourn"]
[EventCountry "ENG"]
[SourceTitle "playchess.com"]
[Source "ChessBase"]
[SourceQuality "1"]
[TimeControl "40/6000+30:3000+30"]

1. d4 {[%emt 0:00:03]} d5 {[%emt 0:00:17]} 2. c4 {[%emt 0:00:06]} e6 {[%emt 0:01:01]} 3. Nc3 {[%emt 0:00:10]} Nf6 {[%emt 0:00:40]} 4. Bg5 {[%emt 0:00:13]} Be7 {[%emt 0:01:02]} 5. e3 {[%emt 0:00:31]} c6 {[%emt 0:02:19]} 6. Nf3 {[%emt 0:00:59]} Nbd7 {[%emt 0:02:27]} 7. Qc2 {[%emt 0:02:21]} b6 {[%emt 0:04:40]} 8. Rd1 {[%emt 0:04:32]} Bb7 {[%emt 0:01:39]} 9. cxd5 {[%emt 0:09:31]} exd5 {[%emt 0:03:40]} 10. Bd3 {[%emt 0:00:59]} h6 {[%emt 0:01:43]} 11. Bh4 {[%emt 0:03:16]} O-O {[%emt 0:00:57]} 12. O-O {[%emt 0:02:08]} Re8 {[%emt 0:16:52]} 13. Bf5 {[%emt 0:11:40]} Nf8 $11 {[%emt 0:16:02]} 14. Ne5 {[%emt 0:08:04]} N6d7 {[%emt 0:06:45]} 15. Bg3 {[%emt 0:03:20]} Nxe5 {[%emt 0:19:14]} 16. dxe5 {[%emt 0:01:28]} Bh4 {[%emt 0:02:00]} 17. f4 {[%emt 0:07:32]} Bxg3 {[%emt 0:00:23]} 18. hxg3 {[%emt 0:00:05]} Qe7 {[%emt 0:01:32]} 19. e4 {[%emt 0:05:48]} Red8 {[%emt 0:07:04]} 20. exd5 {[%emt 0:06:37]} cxd5 {[%emt 0:00:12]} 21. Rfe1 {[%emt 0:05:28]} Ne6 {[%emt 0:06:43]} 22. Bxe6 {[%emt 0:06:24]} fxe6 {[%emt 0:00:31]} 23. Rd4 {[%emt 0:00:45]} Rac8 {[%emt 0:00:44]} 24. Red1 {[%emt 0:02:29]} Rf8 {[%emt 0:02:09]} 25. Qg6 {[%emt 0:06:21]} Bc6 {[%emt 0:00:25]} 26. Kh2 {[%emt 0:01:47]} Rf5 {[%emt 0:00:27]} 27. Nxd5 {[%emt 0:01:31]} Qf7 {[%emt 0:06:47]} 28. Nf6+ {[%emt 0:01:35]} Rxf6 {[%emt 0:00:56]} 29. Rd8+ {[%emt 0:00:11]} Be8 {[%emt 0:01:00]} 30. Qxf7+ {[%emt 0:00:16]} Rxf7 {[%emt 0:00:22]} 31. Rxc8 {[%emt 0:00:08]} Re7 {[%emt 0:00:12]} 32. Rdc1 {[%emt 0:00:26]} Kf8 {[%emt 0:01:45]} 33. R1c7 {[%emt 0:00:09]} Rxc7 {[%emt 0:00:20]} 34. Rxc7 {[%emt 0:00:04]} a5 {[%emt 0:00:07]} 35. Kg1 {[%emt 0:00:39]} 1-0

[Event "4NCL 2023-2024"]
[Site "Daventry"]
[Date "2024.05.06"]
[Round "11.32"]
[White "Flint, Martina"]
[Black "Duessler, Stefanie"]
[Result "0-1"]
[ECO "A03"]
[WhiteElo "1888"]
[BlackElo "2079"]
[Annotator "NA RC"]
[PlyCount "104"]
[EventDate "2023.11.11"]
[EventType "team-tourn"]
[EventCountry "ENG"]
[SourceTitle "playchess.com"]
[Source "ChessBase"]
[SourceQuality "1"]
[TimeControl "40/6000+30:3000+30"]

1. f4 {[%emt 0:00:04]} d5 {[%emt 0:00:08]} 2. Nf3 {[%emt 0:00:28]} g6 {[%emt 0:00:09]} 3. e3 {[%emt 0:00:50]} Nf6 {[%emt 0:01:23]} 4. b3 {[%emt 0:00:41]} Bg7 {[%emt 0:00:14]} 5. Bb2 {[%emt 0:00:32]} O-O {[%emt 0:00:31]} 6. Be2 {[%emt 0:00:47]} c5 {[%emt 0:00:35]} 7. O-O {[%emt 0:00:51]} Nc6 {[%emt 0:00:46]} 8. Nc3 {[%emt 0:05:03]} d4 {[%emt 0:12:33]} 9. exd4 {[%emt 0:09:13]} cxd4 {[%emt 0:00:05]} 10. Nb5 {[%emt 0:01:28]} Ne8 {[%emt 0:02:02]} 11. Bd3 {[%emt 0:06:47]} a6 {[%emt 0:09:41]} 12. Na3 {[%emt 0:00:38]} Nb4 {[%emt 0:00:12]} 13. Qe2 {[%emt 0:01:18]} Nxd3 {[%emt 0:02:29]} 14. cxd3 {[%emt 0:01:12]} Nc7 {[%emt 0:06:24]} 15. Nc2 {[%emt 0:06:00]} Ne6 {[%emt 0:02:54]} 16. Nfe1 {[%emt 0:06:52]} b6 {[%emt 0:16:14]} 17. Rc1 {[%emt 0:08:29]} Ra7 {[%emt 0:03:05]} 18. Ba3 {[%emt 0:07:51]} Rc7 {[%emt 0:06:06]} 19. h3 {[%emt 0:21:41]} a5 {[%emt 0:07:14]} 20. Kh2 {[%emt 0:01:32]} b5 {[%emt 0:01:25]} 21. f5 {[%emt 0:08:59]} gxf5 {[%emt 0:00:27]} 22. Rxf5 {[%emt 0:00:39]} b4 {[%emt 0:00:04]} 23. Bb2 {[%emt 0:00:13]} Qd6+ {[%emt 0:00:05]} 24. g3 {[%emt 0:01:55]} Nc5 {[%emt 0:02:59]} 25. Rh5 {[%emt 0:02:09]} e5 {[%emt 0:06:54]} 26. Ng2 {[%emt 0:04:13]} Nd7 {[%emt 0:02:18]} 27. Nce1 {[%emt 0:04:22]} Rxc1 {[%emt 0:01:21]} 28. Bxc1 {[%emt 0:00:05]} f5 {[%emt 0:01:50]} 29. Nh4 {[%emt 0:00:42]} Nb6 {[%emt 0:04:26]} 30. Nef3 {[%emt 0:02:24]} h6 {[%emt 0:00:43]} 31. Bb2 {[%emt 0:00:43]} Nd5 {[%emt 0:01:36]} 32. Ng2 {[%emt 0:01:16]} Ne7 {[%emt 0:01:04]} 33. Kg1 {[%emt 0:02:17]} Nc6 {[%emt 0:00:27]} 34. Nfh4 {[%emt 0:01:35]} Bd7 {[%emt 0:04:31]} 35. Qf3 {[%emt 0:01:03]} Qe6 {[%emt 0:00:54]} 36. Bc1 {[%emt 0:02:47]} Ne7 {[%emt 0:00:27]} 37. Bb2 {[%emt 0:00:36]} Bc6 {[%emt 0:00:22]} 38. Qe2 {[%emt 0:00:09]} Be8 {[%emt 0:00:34]} 39. Nf4 {[%emt 0:00:45]} Qd6 {[%emt 0:01:06]} 40. Nfg2 {[%emt 0:00:41]} Bxh5 {[%emt 0:01:30]} 41. Qxh5 {[%emt 0:50:03]} Qc6 {[%emt 0:50:43]} 42. Ne1 {[%emt 0:00:05]} Rf7 {[%emt 0:02:55]} 43. Qe2 {[%emt 0:00:46]} Ng6 {[%emt 0:02:13]} 44. Nhf3 {[%emt 0:00:27]} Qd5 {[%emt 0:02:02]} 45. Nc2 {[%emt 0:00:00]} Rc7 {[%emt 0:00:00]} 46. Nfe1 {[%emt 0:00:00]} e4 {[%emt 0:00:00]} 47. dxe4 {[%emt 0:00:00]} fxe4 {[%emt 0:00:00]} 48. Qg4 {[%emt 0:00:00]} Ne5 {[%emt 0:00:00]} 49. Qd1 {[%emt 0:00:00]} Nd3 {[%emt 0:00:00]} 50. Nxd3 {[%emt 0:04:19]} exd3 {[%emt 0:09:49]} 51. Ne1 {[%emt 0:00:00]} Qe4 {[%emt 0:00:00]} 52. Qb1 {[%emt 0:00:00]} Rf7 {[%emt 0:00:00]} 0-1

[Event "4NCL 2023-2024"]
[Site "Daventry"]
[Date "2024.05.06"]
[Round "11.33"]
[White "Claridge-Hansen, William"]
[Black "Royal, Shreyas"]
[Result "1/2-1/2"]
[ECO "D27"]
[WhiteElo "2360"]
[BlackElo "2464"]
[Annotator "TA"]
[PlyCount "63"]
[EventDate "2023.11.11"]
[EventType "team-tourn"]
[EventCountry "ENG"]
[SourceTitle "playchess.com"]
[Source "ChessBase"]
[SourceQuality "1"]
[TimeControl "40/6000+30:3000+30"]

{[%evp 20,63,6,0,10,7,10,0,0,0,0,0,0,-59,-51,-77,-42,-64,-58,-56,-14,-14,-13,-47,-33,-179,-169,-192,-75,-89,-95,-212,-162,-170,-171,-420,-208,-1841,-1559,-29982,-29983,-29982,0,0,0,0]} 1. Nf3 {[%emt 0:00:05]} d5 {[%emt 0:00:06]} 2. e3 {[%emt 0:00:12]} Nf6 {[%emt 0:00:07]} 3. c4 {[%emt 0:00:15]} e6 {[%emt 0:01:02]} 4. Nc3 {[%emt 0:00:21]} dxc4 {[%emt 0:01:44]} 5. Bxc4 {[%emt 0:03:12]} c5 {[%emt 0:01:13]} 6. O-O {[%emt 0:05:04]} Nc6 {[%emt 0:00:06]} 7. Qe2 {[%emt 0:02:12]} a6 {[%emt 0:00:29]} 8. a4 {[%emt 0:02:08]} Bd6 {[%emt 0:01:57]} 9. Rd1 {[%emt 0:05:08]} O-O {[%emt 0:00:47]} 10. d4 {[%emt 0:00:15]} Qc7 {[%emt 0:00:07]} 11. h3 {[%emt 0:06:26]} h6 {[%emt 0:00:14]} 12. dxc5 {[%emt 0:04:55]} Bxc5 {[%emt 0:00:06]} 13. e4 {[%emt 0:00:47]} Nd7 {[%emt 0:04:06]} 14. Be3 {[%emt 0:04:55]} b6 {[%emt 0:11:54]} 15. Rac1 {[%emt 0:04:03]} Bb7 {[%emt 0:00:22]} 16. g4 {[%emt 0:10:30]} (16. Nb1 $11) 16... Nde5 $15 {[%emt 0:13:15]} 17. Nxe5 {[%emt 0:07:24]} Qxe5 {[%emt 0:00:42]} 18. Bxc5 {[%emt 0:04:29]} bxc5 {[%emt 0:07:07]} 19. Qe3 {[%emt 0:01:26]} g5 {[%emt 0:00:07]} 20. Ne2 {[%emt 0:10:30]} Rad8 {[%emt 0:17:44]} 21. Rxd8 {[%emt 0:02:35]} Rxd8 {[%emt 0:00:07]} 22. f3 {[%emt 0:04:06]} ({White should play} 22. b3 $15) 22... Qxb2 $19 {[%emt 0:02:49] [#] Threatens to win with ...Rd2.} 23. h4 {[%emt 0:01:19]} Qe5 {[%emt 0:07:35]} (23... gxh4 24. Qxh6 Qd2 25. Qf6 $15) (23... Ne5 $19 24. hxg5 Rd2) 24. hxg5 {[%emt 0:02:01]} hxg5 {[%emt 0:00:01]} (24... Qxg5 {simplifies} 25. Qxg5+ hxg5 26. Rc3 Ne5) 25. Bxe6 {[%emt 0:06:24]} Qxe6 {[%emt 0:02:23]} 26. Qxg5+ {[%emt 0:00:11]} Qg6 {[%emt 0:00:19]} 27. Qxc5 {[%emt 0:01:14]} (27. Qxg6+ fxg6 28. Rxc5) 27... Qf6 {[%emt 0:00:13]} (27... Rd2 $142 28. Re1 Qh6) 28. Qb6 $2 {[%emt 0:10:07]} (28. Qf5 Qh6 29. Qf4 Qxf4 30. Nxf4) 28... Qxf3 {[%emt 0:02:17]} 29. Qxb7 {[%emt 0:00:26]} Qxe2 {[%emt 0:07:42]} 30. Qxc6 {[%emt 0:00:15]} Rd3 $2 {[%emt 0:00:14]} (30... Qxg4+ {mates} 31. Kf1 Qf3+ 32. Ke1 Rd3 33. Qc5 Qxe4+ (33... Re3+ $2 34. Qxe3 Qxe3+ 35. Kd1 $19) 34. Kf1 Rf3+ (34... Qxa4 $2 {too greedy.} 35. Qg5+ Kh7 36. Qf5+ Kg7 37. Ke2 $18) 35. Qf2 Rxf2+ 36. Kxf2 Qf4+ (36... Qxa4 $2 37. Rg1+ Kf8 38. Rg3 $19) 37. Ke2 Qxc1 38. Kd3 f5 39. Kd4 f4 40. Ke4 Qe3+ 41. Kd5 f3 42. Kd6 f2 43. Kc7 f1=Q (43... f1=B {leads to mate.} 44. Kc6 Bg2+ 45. Kd6 Kf8 46. Kc7 Qc5+ 47. Kd8 Qb6+ 48. Kd7 Bh3#) 44. Kd7 Qf5+ 45. Kd8 Qb6+ 46. Ke8 Qf7#) 31. Qe8+ $11 {[%emt 0:00:30]} Kg7 {[%emt 0:00:16] [#] ( -> ...Rg3+)} 32. Qe5+ {[%emt 0:00:40] Weighted Error Value: White=0.81/Black=0.50.  Mistake:       	White=5     	Black=2      Inaccurate:     	White=2     	Black=2      OK:         	White=3     	Black=4      Best:        	White=2     	Black=2} 1/2-1/2

[Event "4NCL 2023-2024"]
[Site "Daventry"]
[Date "2024.05.06"]
[Round "11.34"]
[White "Bazakutsa, Svyatoslav"]
[Black "Macfarlane, Donald"]
[Result "1-0"]
[ECO "E90"]
[WhiteElo "2473"]
[BlackElo "2184"]
[Annotator "TA"]
[PlyCount "69"]
[EventDate "2023.11.11"]
[EventType "team-tourn"]
[EventCountry "ENG"]
[SourceTitle "playchess.com"]
[Source "ChessBase"]
[SourceQuality "1"]
[TimeControl "40/6000+30:3000+30"]

{[%evp 11,69,35,38,37,54,53,58,50,52,48,52,57,88,72,81,32,47,46,41,35,39,40,48,58,38,45,41,41,49,25,37,27,116,98,94,91,104,101,149,120,150,150,156,117,122,123,153,143,240,228,236,235,241,253,361,369,364,360,579,580]} 1. c4 {[%emt 0:00:13]} Nf6 {[%emt 0:02:02]} 2. Nf3 {[%emt 0:01:15]} g6 {[%emt 0:03:56]} 3. Nc3 {[%emt 0:00:15]} Bg7 {[%emt 0:00:08]} 4. e4 {[%emt 0:02:06]} d6 {[%emt 0:00:59]} 5. d4 {[%emt 0:01:25]} O-O {[%emt 0:01:50]} 6. h3 {[%emt 0:00:21]} a6 {[%emt 0:10:34]} 7. Be3 {[%emt 0:02:56]} Nbd7 {[%emt 0:14:57]} 8. Be2 {[%emt 0:12:00]} c5 {[%emt 0:04:28]} 9. O-O {[%emt 0:09:00] White is slightly better.} cxd4 {[%emt 0:11:41]} 10. Nxd4 {[%emt 0:00:34]} Nc5 {[%emt 0:00:52]} 11. Qc2 {[%emt 0:13:34]} Bd7 {[%emt 0:03:29]} 12. Rac1 {[%emt 0:03:51]} Rc8 {[%emt 0:03:05]} 13. Qb1 {[%emt 0:01:10]} (13. Rfd1 $16) 13... Na4 {[%emt 0:04:11]} 14. Nxa4 {[%emt 0:14:02]} Bxa4 {[%emt 0:00:08]} 15. b3 {[%emt 0:00:05]} Bd7 {[%emt 0:01:39]} 16. Rfd1 {[%emt 0:01:03]} Qa5 {[%emt 0:01:42]} 17. a4 {[%emt 0:09:33]} Rfd8 {[%emt 0:09:50]} 18. Bf3 {[%emt 0:02:57]} Be8 {[%emt 0:05:00]} 19. Ne2 {[%emt 0:16:00][%cal Bd4e2,Be2f4,Bf4d5][%mdl 32]} Nd7 {[%emt 0:09:52]} 20. Bd2 {[%emt 0:01:56]} Qe5 {[%emt 0:02:41]} 21. Nf4 {[%emt 0:02:28]} Qb2 {[%emt 0:02:07]} (21... e6 $11) 22. Nd5 {[%emt 0:00:07]} Qxb1 {[%emt 0:00:40]} 23. Rxb1 {[%emt 0:00:01]} Kf8 {[%emt 0:00:25]} 24. Ba5 $36 {[%emt 0:00:20][%mdl 2048] Black is under strong pressure. White is more active.} Ne5 {[%emt 0:02:06]} 25. Be2 {[%emt 0:00:38]} e6 {[%emt 0:00:50]} 26. Bxd8 {[%emt 0:01:08]} Rxd8 {[%emt 0:00:27]} 27. Ne3 {[%emt 0:00:11]} Ke7 {[%emt 0:03:26]} 28. a5 {[%emt 0:02:03]} Rb8 {[%emt 0:03:54]} 29. b4 {[%emt 0:00:42]} b6 {[%emt 0:00:04]} (29... Nc6 $16 30. Kf1 h5) 30. axb6 $18 {[%emt 0:00:12]} Rxb6 {[%emt 0:00:13]} 31. c5 {[%emt 0:00:12]} dxc5 {[%emt 0:00:16]} 32. bxc5 {[%emt 0:00:11]} Rc6 {[%emt 0:00:02]} (32... Rxb1 {might work better.} 33. Rxb1 Bc6 34. Bxa6 Kd7) 33. Rb7+ {[%emt 0:00:43]} Nd7 {[%emt 0:00:09]} 34. Nc4 {[%emt 0:00:14] [#] Inhibits Be5. aiming for Nb6.} Rxc5 $2 {[%emt 0:01:15]} (34... Kf8 35. Rbxd7 (35. Rdxd7 Bxd7 36. Rxd7 Rxc5 $18) 35... Bxd7 36. Rxd7 Rxc5) 35. Nd6 {[%emt 0:01:56] Weighted Error Value: White=0.07 (flawless) /Black=0.35.  Mistake:       	White=1     	Black=5      Inaccurate:     	---       	Black=1      OK:         	White=16    	Black=7      Best:        	---       	Black=1} 1-0

[Event "4NCL 2023-2024"]
[Site "Daventry"]
[Date "2024.05.06"]
[Round "11.35"]
[White "Hobson, Kenneth"]
[Black "Durak, Can"]
[Result "0-1"]
[ECO "B51"]
[WhiteElo "2190"]
[BlackElo "2436"]
[Annotator "TA"]
[PlyCount "94"]
[EventDate "2023.11.11"]
[EventType "team-tourn"]
[EventCountry "ENG"]
[SourceTitle "playchess.com"]
[Source "ChessBase"]
[SourceQuality "1"]
[TimeControl "40/6000+30:3000+30"]

{[%evp 9,94,4,37,35,25,8,20,9,9,13,15,16,14,12,17,-8,-13,-20,-10,-20,-9,-20,-14,-21,-36,-69,-38,-25,0,0,12,13,9,0,35,-81,-90,-81,-73,-81,-70,-88,-54,-81,-63,-83,-41,-43,-39,-168,-183,-368,-365,-384,-366,-376,-133,-139,-128,-325,-106,-160,-137,-179,-179,-258,-220,-247,-58,-72,-36,-81,-62,-93,-91,-108,-106,-109,-98,-113,-100,-184,-177,-140,-169,-1221,-1173]} 1. e4 {[%emt 0:00:03]} c5 {[%emt 0:00:52]} 2. Nf3 {[%emt 0:00:23]} d6 {[%emt 0:00:35]} 3. Bb5+ {[%emt 0:00:51]} Nd7 {[%emt 0:01:05]} 4. a4 {[%emt 0:01:36]} Ngf6 {[%emt 0:03:43]} 5. Nc3 {[%emt 0:01:20]} g6 {[%emt 0:01:52]} 6. a5 {[%emt 0:01:41]} Bg7 {[%emt 0:03:34]} 7. a6 {[%emt 0:03:53]} O-O {[%emt 0:02:01]} 8. O-O {[%emt 0:01:17] The position is equal.} bxa6 {[%emt 0:03:04]} 9. Bxa6 {[%emt 0:00:14]} Bxa6 {[%emt 0:00:19]} 10. Rxa6 {[%emt 0:00:06]} Nb8 {[%emt 0:00:07]} 11. Ra3 {[%emt 0:03:46]} Nc6 {[%emt 0:01:13]} 12. d4 {[%emt 0:07:15]} cxd4 {[%emt 0:01:59]} 13. Nxd4 {[%emt 0:00:35]} Nxd4 {[%emt 0:01:06]} 14. Qxd4 {[%emt 0:00:06]} Nd7 {[%emt 0:00:15]} 15. Qe3 {[%emt 0:06:03]} Qb8 {[%emt 0:13:18]} 16. Nd5 {[%emt 0:11:45]} e6 {[%emt 0:01:58]} 17. Ne7+ {[%emt 0:05:02]} Kh8 {[%emt 0:00:10][%cal Ob8c7] Hoping for ...Qc7!} 18. Nc6 {[%emt 0:08:41][%csl LRa7,LRb8]} Qb7 {[%emt 0:00:29]} 19. Na5 {[%emt 0:02:18]} Qc7 {[%emt 0:00:24]} 20. c3 {[%emt 0:02:10]} Nb6 {[%emt 0:04:34]} 21. Qg3 {[%emt 0:05:36]} f5 {[%emt 0:00:48]} 22. Rd1 {[%emt 0:05:55]} (22. exf5 $14 {keeps the upper hand.} gxf5 23. f4) 22... fxe4 $17 {[%emt 0:02:33]} 23. Qg4 {[%emt 0:07:19]} (23. Rxd6 $2 Rad8 24. Rd2 (24. Rxe6 $2 Rd1#) 24... Be5 $19) (23. Qxd6 $2 Rfd8 $19) 23... Qf7 {[%emt 0:02:18]} 24. Be3 {[%emt 0:02:45]} d5 {[%emt 0:00:21]} 25. Qe2 {[%emt 0:32:20]} Qc7 {[%emt 0:02:02]} 26. c4 {[%emt 0:00:00]} Rad8 {[%emt 0:04:05] Black is more active.} ({Of course not} 26... Nxc4 $6 27. Rc1 $11) 27. c5 {[%emt 0:00:00]} Nc8 {[%emt 0:00:41]} 28. b4 {[%emt 0:00:00]} Ne7 {[%emt 0:03:10]} 29. b5 {[%emt 0:00:00]} (29. Nb3 $15) 29... d4 $19 {[%emt 0:03:31]} 30. Bg5 {[%emt 0:00:00]} (30. Bc1) 30... Qxc5 {[%emt 0:00:58]} 31. Bxe7 {[%emt 0:00:00]} Qxe7 {[%emt 0:00:07]} 32. Ra2 {[%emt 0:00:00][%cal Oa5c6]} Rd7 $2 {[%emt 0:12:15]} (32... e3 $19 33. Qd3 Qc5) 33. Qxe4 $17 {[%emt 0:00:00]} e5 {[%emt 0:00:11]} 34. Rc1 $2 {[%emt 0:00:00]} (34. f3 $17 {was necessary.}) 34... Qg5 $2 {[%emt 0:01:13]} (34... Qf7 $19 {is more deadly.} 35. Rb2 d3) 35. Rb1 {[%emt 0:00:00] [#]} ({White should try} 35. Rd1) 35... h5 $1 {[%emt 0:02:31]} 36. h4 {[%emt 0:00:00]} Qf5 {[%emt 0:00:29]} 37. f3 {[%emt 0:02:36]} (37. Qxf5 $142 gxf5 (37... Rxf5 $2 38. Nc6 $19) 38. Nc6) 37... Qxe4 $19 {[%emt 0:02:48]} 38. fxe4 {[%emt 0:00:05]} Rb8 $2 {[%emt 0:00:30]} (38... Rf4 $19 39. Nc6 Rxe4 (39... Rxh4 40. Nxa7 d3 41. b6 $19) 40. Rxa7 Rxa7 41. Nxa7 Bf8 (41... Rxh4 $2 {perishes.} 42. b6 $18)) 39. Nc6 $15 {[%emt 0:00:38][%csl LRa7,LRb8]} Rbb7 {[%emt 0:00:19]} 40. Ra6 {[%emt 0:03:09]} Kh7 {[%emt 0:01:21]} 41. g3 {[%emt 0:04:26]} d3 {[%emt 0:04:19] ...d2 is the strong threat.} 42. Na5 {[%emt 0:05:55]} Rbc7 {[%emt 0:18:22] [#] And now ...d2 would win.} 43. Rc6 {[%emt 0:01:28]} d2 {[%emt 0:03:16]} 44. Rd1 {[%emt 0:01:31][%cal Od1d2]} Bh6 $36 {[%emt 0:00:40][%mdl 2048] Black is in control.} 45. Nc4 {[%emt 0:05:55]} (45. Kf1 $17 {was called for.}) 45... Rb7 $19 {[%emt 0:00:29]} 46. Nxe5 {[%emt 0:04:22]} Re7 {[%emt 0:00:02]} 47. Rc5 {[%emt 0:02:05]} (47. Nf3) 47... Be3+ {[%emt 0:00:05] Weighted Error Value: White=0.50/Black=0.28 (precise) .  Loses game:     	White=1     	---        Missed win:     	---       	Black=3      Mistake:       	White=7     	---        Inaccurate:     	White=4     	Black=4      OK:         	White=10    	Black=18     Best:        	White=3     	Black=6} 0-1